bitfinex/quotes_SOLUSD_20250624
["timestamp","ask_amount","ask_price","bid_price","bid_amount"]
[1750748093066,5.50721538,146.42,146.38,88.9]
[1750748093261,5.50721538,146.41,146.39,18.64964886]
[1750748093461,5.50721538,146.41,146.39,107.54964886]
[1750748094274,5.50721538,146.42,146.39,107.54964886]
[1750748095271,5.50721538,146.43,146.39,107.54964886]
[1750748097773,26.0,146.47,146.39,107.54964886]
[1750748097774,5.50721538,146.41,146.39,107.54964886]
[1750748097978,5.50721538,146.41,146.36,31.50721538]
[1750748097979,5.50721538,146.4,146.37,18.64964886]
[1750748098477,1.6521,146.42,146.37,18.64964886]
[1750748098478,5.50721538,146.39,146.37,18.64964886]
[1750748099474,5.50721538,146.4,146.37,18.64964886]
[1750748099958,5.50721538,146.39,146.37,18.64964886]
[1750748100163,5.50721538,146.38,146.36,88.9]
[1750748100363,5.50721538,146.37,146.36,88.9]
[1750748100664,5.50721538,146.37,146.33,18.64964886]
[1750748100854,5.50721538,146.36,146.33,18.64964886]
[1750748101052,5.50721538,146.37,146.33,18.64964886]
[1750748101380,5.50721538,146.37,146.33,24.15686424]
[1750748102480,5.50721538,146.39,146.35,18.64964886]
[1750748102683,27.6521,146.42,146.35,18.64964886]
[1750748102980,5.50721538,146.38,146.35,18.64964886]
[1750748103181,27.6521,146.42,146.35,5.50721538]
[1750748103380,5.50721538,146.4,146.35,5.50721538]
[1750748104280,5.50721538,146.39,146.35,5.50721538]
[1750748104964,5.50721538,146.4,146.37,18.64964886]
[1750748105168,5.50721538,146.41,146.37,18.64964886]
[1750748105656,5.50721538,146.4,146.37,18.64964886]
[1750748105857,5.50721538,146.4,146.37,107.54964886]
[1750748109472,1.6521,146.42,146.37,113.05686424]
[1750748109473,5.50721538,146.41,146.37,113.05686424]
[1750748111482,5.50721538,146.41,146.37,107.54964886]
[1750748111781,5.50721538,146.4,146.37,107.54964886]
[1750748112484,5.50721538,146.39,146.37,88.9]
[1750748112686,5.50721538,146.39,146.35,18.64964886]
[1750748112858,5.50721538,146.38,146.35,107.54964886]
[1750748114384,5.50721538,146.39,146.35,107.54964886]
[1750748114588,5.50721538,146.39,146.35,113.05686424]
[1750748115477,5.50721538,146.39,146.35,107.54964886]
[1750748115681,5.50721538,146.38,146.35,107.54964886]
[1750748116066,5.50721538,146.39,146.35,107.54964886]
[1750748116367,1.6521,146.42,146.35,107.54964886]
[1750748116368,5.50721538,146.38,146.35,107.54964886]
[1750748116580,1.6521,146.42,146.35,18.64964886]
[1750748116765,5.50721538,146.41,146.37,18.64964886]
[1750748117083,5.50721538,146.4,146.37,18.64964886]
[1750748118178,5.50721538,146.4,146.37,107.54964886]
[1750748118378,5.50721538,146.39,146.37,107.54964886]
[1750748122607,5.50721538,146.4,146.37,107.54964886]
[1750748124500,5.50721538,146.39,146.37,107.54964886]
[1750748124872,5.50721538,146.39,146.37,88.9]
[1750748125072,5.50721538,146.38,146.33,18.64964886]
[1750748125301,5.50721538,146.36,146.33,107.54964886]
[1750748125878,5.50721538,146.35,146.33,107.54964886]
[1750748126775,1.6521,146.42,146.33,107.54964886]
[1750748126996,5.50721538,146.37,146.33,113.05686424]
[1750748127698,5.50721538,146.39,146.35,18.64964886]
[1750748128090,5.50721538,146.39,146.35,24.15686424]
[1750748128278,5.50721538,146.39,146.35,18.64964886]
[1750748129405,1.6521,146.42,146.35,18.64964886]
[1750748129597,5.50721538,146.39,146.35,107.54964886]
[1750748129800,5.50721538,146.39,146.35,113.05686424]
[1750748129976,5.50721538,146.39,146.35,107.54964886]
[1750748132706,1.6521,146.42,146.35,107.54964886]
[1750748132910,5.50721538,146.38,146.35,107.54964886]
[1750748134494,5.50721538,146.39,146.35,107.54964886]
[1750748135499,5.50721538,146.38,146.35,107.54964886]
[1750748140110,5.50721538,146.36,146.35,88.9]
[1750748142015,6.83121873,146.39,146.35,88.9]
[1750748142315,5.50721538,146.36,146.35,88.9]
[1750748142711,5.50721538,146.36,146.32,88.9]
[1750748142908,5.50721538,146.33,146.29,18.64964886]
[1750748143116,1.6129,146.36,146.29,18.64964886]
[1750748143117,5.50721538,146.3,146.29,88.9]
[1750748143331,5.50721538,146.3,146.25,5.50721538]
[1750748143635,5.50721538,146.29,146.25,94.40721538]
[1750748143794,5.50721538,146.29,146.26,18.64964886]
[1750748143992,5.50721538,146.3,146.26,18.64964886]
[1750748144189,5.50721538,146.3,146.26,107.54964886]
[1750748145706,5.50721538,146.3,146.26,113.05686424]
[1750748146227,5.50721538,146.3,146.26,107.54964886]
[1750748146893,5.50721538,146.3,146.26,113.05686424]
[1750748147091,7.94220233,146.36,146.28,18.64964886]
[1750748147294,7.94220233,146.36,146.28,107.54964886]
[1750748147542,5.50721538,146.32,146.28,107.54964886]
[1750748148224,5.50721538,146.31,146.28,107.54964886]
[1750748149122,5.50721538,146.32,146.28,113.05686424]
[1750748149721,5.50721538,146.33,146.28,119.89302641]
[1750748150040,5.50721538,146.33,146.28,114.38571767]
[1750748150331,5.50721538,146.33,146.29,5.50721538]
[1750748150717,5.50721538,146.33,146.28,114.38571767]
[1750748150915,5.50721538,146.33,146.29,5.50721538]
[1750748151640,6.32930233,146.39,146.29,5.50721538]
[1750748151641,1.6097,146.4,146.33,18.64964886]
[1750748151928,5.50721538,146.37,146.33,24.15686424]
[1750748152228,5.50721538,146.37,146.33,113.05686424]
[1750748153026,5.50721538,146.36,146.33,107.54964886]
[1750748155332,7.11691538,146.4,146.33,113.05686424]
[1750748155333,1.6097,146.4,146.33,113.05686424]
[1750748155515,5.50721538,146.38,146.33,113.05686424]
[1750748156024,5.50721538,146.38,146.33,107.54964886]
[1750748156325,5.50721538,146.38,146.35,18.64964886]
[1750748157007,5.50721538,146.38,146.34,18.64964886]
[1750748157207,5.50721538,146.38,146.34,24.15686424]
[1750748157403,5.50721538,146.39,146.34,18.64964886]
[1750748157612,5.50721538,146.38,146.34,18.64964886]
[1750748157817,5.50721538,146.38,146.34,24.15686424]
[1750748158025,5.50721538,146.37,146.34,18.64964886]
[1750748158334,5.50721538,146.37,146.34,107.54964886]
[1750748160025,5.50721538,146.36,146.34,107.54964886]
[1750748160722,5.50721538,146.37,146.34,107.54964886]
[1750748161137,27.6097,146.4,146.34,107.54964886]
[1750748161311,27.6097,146.4,146.34,24.15686424]
[1750748161512,5.50721538,146.39,146.35,5.50721538]
[1750748161735,5.50721538,146.4,146.36,24.15686424]
[1750748161935,5.50721538,146.4,146.36,18.64964886]
[1750748162538,5.50721538,146.4,146.36,107.54964886]
[1750748163808,49.00856498,146.42,146.36,107.54964886]
[1750748164009,5.50721538,146.4,146.36,107.54964886]
[1750748164439,5.50721538,146.39,146.36,107.54964886]
[1750748164823,5.50721538,146.38,146.36,107.54964886]
[1750748165735,49.00856498,146.42,146.33,18.64964886]
[1750748165736,5.50721538,146.37,146.33,18.64964886]
[1750748166041,5.50721538,146.37,146.33,107.54964886]
[1750748169332,5.50721538,146.34,146.33,88.9]
[1750748169538,5.50721538,146.34,146.31,18.64964886]
[1750748170251,5.50721538,146.35,146.31,18.64964886]
[1750748171248,28.4,146.37,146.31,24.15686424]
[1750748171452,5.50721538,146.35,146.31,113.05686424]
[1750748172034,5.50721538,146.36,146.31,113.05686424]
[1750748173149,5.50721538,146.35,146.31,113.05686424]
[1750748173329,5.50721538,146.35,146.31,107.54964886]
[1750748173948,5.50721538,146.35,146.31,113.05686424]
[1750748176026,5.50721538,146.36,146.31,113.05686424]
[1750748180251,5.50721538,146.36,146.31,107.54964886]
[1750748180453,5.50721538,146.35,146.31,113.05686424]
[1750748180765,5.50721538,146.36,146.31,113.05686424]
[1750748181132,28.4,146.37,146.31,113.05686424]
[1750748181433,5.50721538,146.36,146.31,113.05686424]
[1750748182051,5.50721538,146.36,146.33,18.64964886]
[1750748182236,28.4,146.37,146.34,18.64964886]
[1750748182448,7.10241538,146.39,146.34,113.05686424]
[1750748182757,5.50721538,146.38,146.34,113.05686424]
[1750748184055,7.10241538,146.39,146.36,18.64964886]
[1750748184265,7.10241538,146.39,146.36,107.54964886]
[1750748184470,20.60856498,146.42,146.36,113.05686424]
[1750748184648,33.90721538,146.41,146.37,5.50721538]
[1750748185031,5.50721538,146.4,146.36,113.05686424]
[1750748186644,5.50721538,146.4,146.36,107.54964886]
[1750748187150,5.50721538,146.39,146.36,107.54964886]
[1750748187452,48.98856498,146.42,146.36,107.54964886]
[1750748187453,5.50721538,146.38,146.36,107.54964886]
[1750748187638,26.0,146.35,146.25,8.46034642]
[1750748187838,5.50721538,146.32,146.28,18.64964886]
[1750748191544,5.50721538,146.31,146.28,18.64964886]
[1750748191744,28.38,146.34,146.28,18.64964886]
[1750748191947,5.50721538,146.31,146.28,18.64964886]
[1750748193059,5.50721538,146.32,146.28,18.64964886]
[1750748193363,5.50721538,146.31,146.28,18.64964886]
[1750748193663,5.50721538,146.31,146.28,107.54964886]
[1750748200974,28.38,146.33,146.28,113.05686424]
[1750748201176,5.50721538,146.34,146.31,18.64964886]
[1750748201340,5.50721538,146.34,146.31,107.54964886]
[1750748201759,28.38,146.35,146.31,107.54964886]
[1750748201959,5.50721538,146.34,146.31,107.54964886]
[1750748202372,28.38,146.35,146.31,107.54964886]
[1750748202556,5.50721538,146.34,146.31,107.54964886]
[1750748203746,8.1993,146.37,146.31,107.54964886]
[1750748203976,33.88721538,146.36,146.31,113.05686424]
[1750748205170,7.17161538,146.37,146.32,5.50721538]
[1750748205371,6.26,146.38,146.34,24.15686424]
[1750748205372,40.14721538,146.38,146.34,24.15686424]
[1750748205549,40.14721538,146.38,146.34,113.05686424]
[1750748205753,28.38,146.4,146.36,18.64964886]
[1750748205950,33.88721538,146.4,146.36,18.64964886]
[1750748206349,5.50721538,146.4,146.36,18.64964886]
[1750748206844,5.50721538,146.4,146.36,24.15686424]
[1750748207260,5.50721538,146.4,146.36,113.05686424]
[1750748207674,5.50721538,146.4,146.36,107.54964886]
[1750748208880,5.50721538,146.39,146.36,107.54964886]
[1750748210396,36.4826,146.41,146.36,107.54964886]
[1750748210685,5.50721538,146.39,146.36,107.54964886]
[1750748214366,28.36,146.4,146.36,107.54964886]
[1750748214567,5.50721538,146.39,146.36,107.54964886]
[1750748214783,28.36,146.4,146.36,107.54964886]
[1750748214988,5.50721538,146.39,146.36,107.54964886]
[1750748215200,33.86721538,146.4,146.36,113.05686424]
[1750748215503,5.50721538,146.4,146.36,113.05686424]
[1750748215885,33.86721538,146.41,146.38,18.64964886]
[1750748216090,5.50721538,146.41,146.38,107.54964886]
[1750748219593,19.83578036,146.42,146.38,107.54964886]
[1750748220720,14.32856498,146.42,146.4,18.64964886]
[1750748220883,14.32856498,146.42,146.4,5.50721538]
[1750748221214,5.50721538,146.44,146.39,24.15686424]
[1750748221386,5.50721538,146.44,146.39,113.05686424]
[1750748222082,5.50721538,146.44,146.4,5.50721538]
[1750748222616,5.50721538,146.45,146.41,24.15686424]
[1750748222800,5.50721538,146.42,146.4,88.9]
[1750748223003,28.34,146.46,146.38,107.54964886]
[1750748223190,5.50721538,146.41,146.38,107.54964886]
[1750748224612,5.50721538,146.4,146.38,107.54964886]
[1750748224811,5.50721538,146.39,146.38,107.54964886]
[1750748225028,5.50721538,146.39,146.33,102.14179918]
[1750748225235,5.50721538,146.38,146.34,24.15686424]
[1750748225389,5.50721538,146.38,146.34,23.65686424]
[1750748225590,5.50721538,146.39,146.34,23.65686424]
[1750748226588,28.34,146.42,146.37,5.50721538]
[1750748226783,16.63412275,146.49,146.42,6.82966807]
[1750748227008,15.05042275,146.49,146.48,5.50721538]
[1750748227220,5.50721538,146.52,146.48,5.50721538]
[1750748227391,5.50721538,146.52,146.44,26.0]
[1750748227392,5.50721538,146.49,146.46,18.64964886]
[1750748227596,5.50721538,146.48,146.46,18.64964886]
[1750748228888,5.50721538,146.47,146.44,18.64964886]
[1750748232217,5.50721538,146.47,146.44,107.54964886]
[1750748233931,28.34,146.51,146.45,5.50721538]
[1750748234142,33.84721538,146.51,146.46,24.15686424]
[1750748234319,5.50721538,146.49,146.45,94.40721538]
[1750748234503,5.50721538,146.49,146.46,18.64964886]
[1750748234708,5.50721538,146.48,146.46,18.64964886]
[1750748235031,5.50721538,146.48,146.45,18.64964886]
[1750748235422,28.32,146.51,146.44,94.40721538]
[1750748235423,5.50721538,146.46,146.44,88.9]
[1750748235627,5.50721538,146.46,146.45,18.64964886]
[1750748237218,5.50721538,146.46,146.42,18.64964886]
[1750748237534,5.50721538,146.45,146.42,107.54964886]
[1750748237739,5.50721538,146.43,146.39,88.9]
[1750748237950,5.50721538,146.41,146.4,18.64964886]
[1750748238116,5.50721538,146.41,146.39,18.64964886]
[1750748238318,5.50721538,146.43,146.39,18.64964886]
[1750748238518,5.50721538,146.43,146.39,113.05686424]
[1750748238858,5.50721538,146.44,146.39,113.05686424]
[1750748239160,5.50721538,146.44,146.39,119.88755065]
[1750748239517,33.82721538,146.45,146.4,5.50721538]
[1750748240239,33.82721538,146.45,146.41,24.15686424]
[1750748240450,28.32,146.45,146.41,24.15686424]
[1750748241155,33.82721538,146.45,146.41,18.64964886]
[1750748241447,33.82721538,146.45,146.41,24.15686424]
[1750748242239,33.82721538,146.45,146.41,18.64964886]
[1750748242443,5.50721538,146.44,146.41,18.64964886]
[1750748242643,28.32,146.45,146.41,18.64964886]
[1750748242644,5.50721538,146.43,146.41,18.64964886]
[1750748242834,5.50721538,146.42,146.4,88.9]
[1750748243023,5.50721538,146.42,146.39,18.64964886]
[1750748243231,5.50721538,146.42,146.39,108.04964886]
[1750748244029,5.50721538,146.41,146.39,108.04964886]
[1750748244845,28.32,146.45,146.39,108.04964886]
[1750748245046,5.50721538,146.41,146.39,108.04964886]
[1750748245252,5.50721538,146.42,146.39,108.04964886]
[1750748246425,5.50721538,146.43,146.39,120.38788364]
[1750748246737,5.50721538,146.44,146.41,18.64964886]
[1750748246919,5.50721538,146.44,146.41,108.04964886]
[1750748247346,33.82721538,146.45,146.41,108.04964886]
[1750748247744,5.50721538,146.44,146.41,108.04964886]
[1750748248626,29.8347,146.47,146.41,108.04964886]
[1750748248827,5.50721538,146.45,146.41,108.04964886]
[1750748250049,5.50721538,146.44,146.41,108.04964886]
[1750748251038,5.50721538,146.45,146.41,108.04964886]
[1750748252128,5.50721538,146.45,146.41,120.38688118]
[1750748252546,5.50721538,146.47,146.43,18.64964886]
[1750748252758,5.50721538,146.47,146.43,108.04964886]
[1750748253053,5.50721538,146.46,146.43,108.04964886]
[1750748254161,26.0,146.5,146.43,108.04964886]
[1750748254374,5.50721538,146.46,146.43,108.04964886]
[1750748254652,5.50721538,146.44,146.4,18.64964886]
[1750748255854,28.3,146.49,146.4,24.15686424]
[1750748256057,5.50721538,146.46,146.42,18.64964886]
[1750748256258,5.50721538,146.45,146.42,18.64964886]
[1750748256757,28.3,146.49,146.42,18.64964886]
[1750748257055,5.50721538,146.46,146.42,18.64964886]
[1750748258255,28.3,146.49,146.42,5.50721538]
[1750748258443,5.50721538,146.48,146.44,18.64964886]
[1750748258632,5.50721538,146.47,146.44,18.64964886]
[1750748259651,5.50721538,146.47,146.43,18.64964886]
[1750748261859,5.50721538,146.47,146.43,108.04964886]
[1750748263259,5.50721538,146.49,146.44,5.50721538]
[1750748263560,5.50721538,146.49,146.46,18.64964886]
[1750748263744,5.50721538,146.49,146.46,108.04964886]
[1750748265063,20.40106425,146.55,146.48,24.15686424]
[1750748265064,6.37393639,146.54,146.48,24.15686424]
[1750748265266,1.5493,146.55,146.5,18.64964886]
[1750748265267,5.50721538,146.53,146.5,18.64964886]
[1750748265482,5.50721538,146.51,146.48,89.4]
[1750748265669,5.50721538,146.5,146.48,89.4]
[1750748266641,5.50721538,146.49,146.48,89.4]
[1750748267065,5.50721538,146.5,146.48,89.4]
[1750748267554,29.8293,146.55,146.48,89.4]
[1750748267741,5.50721538,146.5,146.48,89.4]
[1750748268946,34.65393639,146.58,146.49,24.15686424]
[1750748269265,5.50721538,146.54,146.49,108.04964886]
[1750748269567,5.50721538,146.54,146.49,113.55686424]
[1750748269954,5.50721538,146.54,146.49,120.38319726]
[1750748270259,5.50721538,146.55,146.5,5.50721538]
[1750748270466,28.28,146.58,146.5,89.4]
[1750748270656,5.50721538,146.56,146.52,18.64964886]
[1750748271879,1.556,146.59,146.54,18.64964886]
[1750748271880,5.50721538,146.57,146.54,18.64964886]
[1750748272036,5.50721538,146.58,146.54,108.04964886]
[1750748272383,5.50721538,146.55,146.54,89.4]
[1750748275277,29.836,146.59,146.54,89.4]
[1750748275484,5.50721538,146.57,146.54,89.4]
[1750748275798,5.50721538,146.56,146.54,89.4]
[1750748276456,5.50721538,146.56,146.52,18.64964886]
[1750748277187,34.92170078,146.59,146.52,18.64964886]
[1750748277389,5.50721538,146.56,146.52,18.64964886]
[1750748277586,34.92170078,146.59,146.52,18.64964886]
[1750748277795,5.50721538,146.56,146.52,24.15686424]
[1750748277970,5.50721538,146.56,146.52,18.64964886]
[1750748278285,5.50721538,146.56,146.52,24.15686424]
[1750748279270,5.50721538,146.56,146.52,18.64964886]
[1750748279684,5.50721538,146.55,146.52,18.64964886]
[1750748280366,5.50721538,146.55,146.51,89.4]
[1750748280565,5.50721538,146.52,146.51,108.04964886]
[1750748280779,5.50721538,146.53,146.51,108.04964886]
[1750748280980,5.08570078,146.58,146.52,24.15686424]
[1750748280981,28.26,146.58,146.52,24.15686424]
[1750748281180,5.50721538,146.56,146.52,113.55686424]
[1750748281375,5.50721538,146.57,146.52,113.55686424]
[1750748281767,28.26,146.58,146.52,113.55686424]
[1750748282072,5.50721538,146.57,146.52,113.55686424]
[1750748283001,5.50721538,146.56,146.52,113.55686424]
[1750748283199,5.50721538,146.56,146.52,108.04964886]
[1750748283700,5.50721538,146.55,146.52,108.04964886]
[1750748284277,5.50721538,146.56,146.52,108.04964886]
[1750748284470,5.50721538,146.56,146.52,113.55686424]
[1750748284791,33.76721538,146.58,146.54,18.64964886]
[1750748284983,5.50721538,146.58,146.54,113.55686424]
[1750748285180,5.50721538,146.59,146.55,5.50721538]
[1750748285397,5.50721538,146.59,146.56,18.64964886]
[1750748286469,29.8355,146.62,146.56,18.64964886]
[1750748286700,5.50721538,146.59,146.56,108.04964886]
[1750748286910,5.50721538,146.6,146.56,108.04964886]
[1750748287107,1.5755,146.62,146.56,89.4]
[1750748287311,5.50721538,146.58,146.56,89.4]
[1750748289300,29.8355,146.62,146.56,89.4]
[1750748289606,5.50721538,146.58,146.56,89.4]
[1750748292221,29.8355,146.62,146.56,89.4]
[1750748292528,5.50721538,146.58,146.56,89.4]
[1750748293210,5.50721538,146.59,146.56,89.4]
[1750748293961,5.50721538,146.58,146.56,89.4]
[1750748294601,5.50721538,146.59,146.56,89.4]
[1750748295708,5.50721538,146.6,146.57,18.64964886]
[1750748297724,5.50721538,146.59,146.57,18.64964886]
[1750748297936,5.50721538,146.59,146.57,108.04964886]
[1750748298307,5.50721538,146.6,146.57,108.04964886]
[1750748299330,5.50721538,146.59,146.57,108.04964886]
[1750748300201,5.50721538,146.6,146.57,108.04964886]
[1750748301935,5.50721538,146.59,146.57,108.04964886]
[1750748302237,5.50721538,146.58,146.57,108.04964886]
[1750748302419,5.50721538,146.59,146.57,108.04964886]
[1750748302615,5.50721538,146.58,146.57,89.4]
[1750748303022,5.50721538,146.59,146.57,89.4]
[1750748303339,5.50721538,146.6,146.57,89.4]
[1750748305227,5.50721538,146.6,146.58,18.64964886]
[1750748305434,5.50721538,146.61,146.58,18.64964886]
[1750748306131,5.50721538,146.6,146.57,89.4]
[1750748306429,5.50721538,146.61,146.58,18.64964886]
[1750748310349,5.06998334,146.63,146.58,18.64964886]
[1750748310555,5.50721538,146.6,146.57,89.4]
[1750748310831,5.06998334,146.63,146.57,89.4]
[1750748311037,5.50721538,146.59,146.57,89.4]
[1750748311421,5.50721538,146.6,146.57,89.4]
[1750748312015,10.57719872,146.63,146.58,24.15686424]
[1750748312211,5.50721538,146.62,146.58,108.04964886]
[1750748312730,5.50721538,146.61,146.58,108.04964886]
[1750748312936,5.50721538,146.62,146.58,108.04964886]
[1750748313538,5.50721538,146.61,146.58,108.04964886]
[1750748313848,5.50721538,146.62,146.58,108.04964886]
[1750748314258,10.57719872,146.64,146.6,18.64964886]
[1750748314439,5.50721538,146.63,146.6,18.64964886]
[1750748314629,5.50721538,146.63,146.59,18.64964886]
[1750748315948,5.06998334,146.65,146.59,18.64964886]
[1750748316155,5.50721538,146.63,146.59,18.64964886]
[1750748317849,5.50721538,146.63,146.59,108.04964886]
[1750748320151,5.50721538,146.64,146.59,120.3784906]
[1750748321871,5.50721538,146.64,146.59,113.55686424]
[1750748322042,5.50721538,146.62,146.59,108.04964886]
[1750748322355,5.50721538,146.6,146.59,89.4]
[1750748323347,5.50721538,146.6,146.57,89.4]
[1750748323561,5.50721538,146.59,146.57,89.4]
[1750748325266,5.50721538,146.58,146.57,89.4]
[1750748325839,5.50721538,146.58,146.55,89.4]
[1750748326050,5.50721538,146.56,146.55,89.4]
[1750748329562,5.50721538,146.56,146.5,18.64964886]
[1750748329765,5.50721538,146.53,146.5,108.04964886]
[1750748330460,5.50721538,146.52,146.5,108.04964886]
[1750748330665,5.06998334,146.54,146.48,89.4]
[1750748330840,5.50721538,146.5,146.48,89.4]
[1750748331036,5.50721538,146.5,146.49,26.0]
[1750748331241,5.06998334,146.54,146.47,18.64964886]
[1750748331472,5.50721538,146.51,146.47,18.64964886]
[1750748332142,5.50721538,146.51,146.47,25.47690586]
[1750748332340,5.50721538,146.53,146.49,18.64964886]
[1750748332963,5.50721538,146.53,146.49,24.15686424]
[1750748333359,5.50721538,146.53,146.49,18.64964886]
[1750748334164,5.50721538,146.53,146.49,24.15686424]
[1750748334364,5.50721538,146.54,146.49,30.98324306]
[1750748334668,5.50721538,146.54,146.5,5.50721538]
[1750748335352,10.57719872,146.56,146.52,18.64964886]
[1750748335545,5.50721538,146.57,146.52,24.15686424]
[1750748335970,5.50721538,146.56,146.52,18.64964886]
[1750748338474,5.50721538,146.56,146.52,30.98176801]
[1750748338771,5.50721538,146.56,146.52,120.38176801]
[1750748340266,5.50721538,146.56,146.52,113.55686424]
[1750748340565,5.50721538,146.56,146.52,108.04964886]
[1750748341251,33.28998334,146.59,146.52,120.38174677]
[1750748341454,33.28998334,146.59,146.54,18.64964886]
[1750748341455,5.50721538,146.58,146.54,18.64964886]
[1750748341770,16.75719872,146.6,146.56,18.64964886]
[1750748341973,11.68721538,146.6,146.56,18.64964886]
[1750748342153,5.50721538,146.59,146.56,18.64964886]
[1750748342475,5.50721538,146.59,146.56,108.04964886]
[1750748343274,28.22,146.62,146.56,108.04964886]
[1750748343455,5.50721538,146.59,146.56,108.04964886]
[1750748346677,5.50721538,146.58,146.56,108.04964886]
[1750748348852,5.50721538,146.57,146.54,89.4]
[1750748349052,1.6206,146.59,146.54,89.4]
[1750748349572,5.50721538,146.59,146.55,18.64964886]
[1750748349954,5.06998334,146.62,146.55,18.64964886]
[1750748350155,5.50721538,146.59,146.55,113.55686424]
[1750748350459,5.50721538,146.59,146.55,108.04964886]
[1750748351759,5.50721538,146.57,146.55,89.4]
[1750748352177,5.50721538,146.56,146.55,89.4]
[1750748353383,5.50721538,146.57,146.55,89.4]
[1750748353966,5.50721538,146.58,146.55,89.4]
[1750748354165,32.37393639,146.62,146.55,89.4]
[1750748354166,5.50721538,146.6,146.56,18.64964886]
[1750748354373,5.50721538,146.6,146.56,108.04964886]
[1750748355357,5.50721538,146.58,146.56,108.04964886]
[1750748356676,5.50721538,146.58,146.56,89.4]
[1750748357689,5.50721538,146.57,146.56,89.4]
[1750748358186,5.50721538,146.57,146.53,108.04964886]
[1750748358396,5.50721538,146.55,146.52,18.64964886]
[1750748358689,5.50721538,146.55,146.52,108.04964886]
[1750748361784,5.50721538,146.54,146.52,108.04964886]
[1750748362994,5.50721538,146.55,146.52,108.04964886]
[1750748364270,5.50721538,146.54,146.52,108.04964886]
[1750748367117,5.50721538,146.53,146.5,89.4]
[1750748367285,5.50721538,146.51,146.46,101.08721538]
[1750748367486,5.50721538,146.5,146.46,95.58]
[1750748367788,5.50721538,146.5,146.47,18.64964886]
[1750748369704,5.50721538,146.52,146.47,24.15686424]
[1750748371095,5.50721538,146.52,146.47,120.38419283]
[1750748371498,5.50721538,146.53,146.48,5.50721538]
[1750748371702,5.50721538,146.53,146.48,94.90721538]
[1750748373912,54.2,146.56,146.48,94.90721538]
[1750748374119,5.50721538,146.53,146.48,94.90721538]
[1750748375110,5.50721538,146.52,146.48,89.4]
[1750748375294,5.50721538,146.52,146.49,18.64964886]
[1750748375502,5.50721538,146.52,146.49,108.04964886]
[1750748378418,5.50721538,146.5,146.49,89.4]
[1750748378714,5.50721538,146.5,146.47,18.64964886]
[1750748378715,5.50721538,146.5,146.47,89.4]
[1750748378912,5.50721538,146.48,146.47,89.4]
[1750748379104,5.50721538,146.48,146.45,108.04964886]
[1750748379419,5.50721538,146.47,146.45,108.04964886]
[1750748380010,5.50721538,146.47,146.39,89.4]
[1750748380201,1.5518,146.48,146.41,5.50721538]
[1750748380401,5.50721538,146.46,146.42,18.64964886]
[1750748380600,5.50721538,146.46,146.42,113.55686424]
[1750748381522,5.50721538,146.47,146.42,113.55686424]
[1750748382006,5.50721538,146.47,146.42,108.04964886]
[1750748382324,5.50721538,146.47,146.42,113.55686424]
[1750748383001,5.50721538,146.46,146.42,113.55686424]
[1750748383203,5.50721538,146.44,146.42,18.64964886]
[1750748383401,5.50721538,146.43,146.4,89.4]
[1750748383600,5.50721538,146.42,146.39,18.64964886]
[1750748384217,5.50721538,146.43,146.39,18.64964886]
[1750748384609,5.50721538,146.43,146.39,24.15686424]
[1750748385200,5.50721538,146.44,146.39,24.15686424]
[1750748385401,5.50721538,146.44,146.39,30.98785679]
[1750748386119,5.50721538,146.44,146.39,24.15686424]
[1750748386428,5.50721538,146.42,146.39,18.64964886]
[1750748386597,5.50721538,146.42,146.39,108.04964886]
[1750748387127,5.50721538,146.4,146.38,136.72098268]
[1750748387322,5.50721538,146.39,146.38,136.72098268]
[1750748392240,1.581,146.41,146.38,136.72098268]
[1750748392427,5.50721538,146.39,146.38,136.72098268]
[1750748392729,5.50721538,146.4,146.38,136.72098268]
[1750748393521,5.50721538,146.39,146.38,136.72098268]
[1750748395420,5.50721538,146.39,146.35,89.4]
[1750748395601,5.50721538,146.36,146.35,89.4]
[1750748396119,5.50721538,146.36,146.33,108.04964886]
[1750748396322,5.50721538,146.34,146.33,89.4]
[1750748396510,5.50721538,146.34,146.31,25.48440604]
[1750748396715,5.50721538,146.34,146.31,114.88440604]
[1750748397336,5.50721538,146.33,146.31,108.04964886]
[1750748397522,5.50721538,146.33,146.31,108.0052502]
[1750748398515,5.50721538,146.33,146.31,114.83993905]
[1750748399628,5.50721538,146.34,146.31,114.83993905]
[1750748400343,5.50721538,146.33,146.31,114.83993905]
[1750748401143,5.50721538,146.32,146.28,89.4]
[1750748401317,1.5376,146.35,146.27,108.04964886]
[1750748401318,5.50721538,146.29,146.27,108.04964886]
[1750748401519,5.50721538,146.28,146.22,6.83900971]
[1750748401711,5.50721538,146.28,146.23,5.50721538]
[1750748401920,5.50721538,146.27,146.24,18.64964886]
[1750748402327,5.50721538,146.27,146.23,6.83829995]
[1750748402749,5.50721538,146.27,146.23,12.34551533]
[1750748402912,5.50721538,146.27,146.24,18.64964886]